bitfinex/quotes_SOLUSD_20240908
["timestamp","ask_amount","ask_price","bid_price","bid_amount"]
[1725819669592,18.13280634,129.34,129.28,29.66723131]
[1725819669767,24.67731923,129.33,129.28,29.66723131]
[1725819670771,24.67731923,129.33,129.29,45.0]
[1725819670976,24.67731923,129.33,129.3,20.0]
[1725819674562,24.67731923,129.33,129.29,20.0]
[1725819675069,24.67731923,129.33,129.3,9.66723131]
[1725819675269,24.67731923,129.33,129.31,20.0]
[1725819678088,24.67731923,129.33,129.3,9.66723131]
[1725819678266,24.67731923,129.33,129.31,20.0]
[1725819679088,24.67731923,129.33,129.32,9.66723131]
[1725819679362,25.72695721,129.37,129.32,74.66723131]
[1725819679562,25.72695721,129.37,129.34,9.66723131]
[1725819681483,25.72695721,129.37,129.36,9.66723131]
[1725819681693,23.98869266,129.41,129.36,74.66723131]
[1725819681884,23.98869266,129.41,129.38,9.66723131]
[1725819682108,22.5698,129.42,129.38,9.66723131]
[1725819682474,25.20987077,129.41,129.38,9.66723131]
[1725819683491,27.1418107,129.41,129.31,7.12784135]
[1725819683724,25.62989085,129.4,129.32,29.66723131]
[1725819683860,16.0055,129.38,129.32,20.0]
[1725819684195,32.0184897,129.37,129.32,20.0]
[1725819684371,25.75115397,129.36,129.31,20.0]
[1725819685779,25.75115397,129.36,129.32,9.66723131]
[1725819686038,25.75115397,129.36,129.33,20.0]
[1725819693682,25.75115397,129.36,129.3,9.66723131]
[1725819693878,25.75115397,129.36,129.31,20.0]
[1725819695189,25.75115397,129.36,129.27,7.12784135]
[1725819695382,25.75115397,129.36,129.27,16.79507266]
[1725819695704,16.0055,129.34,129.27,16.79507266]
[1725819695922,27.63596675,129.33,129.27,16.79507266]
[1725819696373,27.63596675,129.33,129.27,7.12784135]
[1725819696572,34.12596675,129.33,129.26,9.66723131]
[1725819696789,27.03012406,129.32,129.26,9.66723131]
[1725819698108,27.03012406,129.32,129.27,65.0]
[1725819706705,27.03012406,129.32,129.28,9.66723131]
[1725819706886,27.03012406,129.32,129.29,20.0]
[1725819707289,27.03012406,129.32,129.3,45.0]
[1725819708793,27.03012406,129.32,129.29,20.0]
[1725819713412,27.03012406,129.32,129.3,9.66723131]
[1725819715397,27.03012406,129.32,129.29,20.0]
[1725819716254,27.03012406,129.32,129.28,9.66723131]
[1725819716507,27.03012406,129.32,129.29,20.0]
[1725819716714,27.03012406,129.32,129.27,20.0]
[1725819716900,33.63962406,129.32,129.27,20.0]
[1725819717094,26.29820917,129.31,129.27,20.0]
[1725819717611,26.29820917,129.31,129.24,16.79507266]
[1725819717612,26.29820917,129.31,129.25,20.0]
[1725819718292,26.29820917,129.31,129.24,16.79507266]
[1725819719506,26.29820917,129.31,129.25,65.0]
[1725819720586,26.29820917,129.31,129.26,9.66723131]
[1725819720807,26.29820917,129.31,129.27,20.0]
[1725819721695,26.29820917,129.31,129.28,9.66723131]
[1725819724134,26.29820917,129.31,129.29,65.0]
[1725819725702,26.29820917,129.31,129.3,9.66723131]
[1725819726028,26.29820917,129.31,129.3,54.66723131]
[1725819726520,26.29820917,129.31,129.3,74.66723131]
[1725819735728,26.29820917,129.31,129.3,29.66723131]
[1725819737206,26.29820917,129.31,129.3,74.66723131]
[1725819738600,26.29820917,129.31,129.3,65.0]
[1725819739203,26.29820917,129.31,129.3,20.0]
[1725819739405,26.29820917,129.31,129.29,20.0]
[1725819740217,26.29820917,129.31,129.27,20.0]
[1725819740416,26.29820917,129.31,129.28,45.0]
[1725819740731,26.29820917,129.31,129.29,20.0]
[1725819746962,26.29820917,129.31,129.24,7.12784135]
[1725819746963,6.1155,129.3,129.24,7.12784135]
[1725819747185,17.54823466,129.29,129.24,1.55049805]
[1725819747431,17.54823466,129.29,129.23,1.55049805]
[1725819747675,17.54823466,129.29,129.21,1.55083237]
[1725819747937,17.54823466,129.29,129.22,1.55083237]
[1725819748152,17.54823466,129.29,129.2,9.66723131]
[1725819748400,1.93428299,129.28,129.21,1.55094542]
[1725819748714,1.93428299,129.28,129.2,9.66723131]
[1725819748941,15.6143,129.29,129.2,11.21817673]
[1725819749121,15.6143,129.29,129.21,1.55094542]
[1725819749332,15.6143,129.29,129.2,9.66723131]
[1725819749544,15.6143,129.29,129.21,45.0]
[1725819749742,15.6143,129.29,129.21,66.55094542]
[1725819749942,15.6143,129.29,129.21,65.0]
[1725819750523,15.6143,129.29,129.22,9.66723131]
[1725819750727,27.52550238,129.28,129.23,45.0]
[1725819754355,29.45967601,129.28,129.23,45.0]
[1725819754657,25.99770281,129.27,129.23,45.0]
[1725819758542,25.99770281,129.27,129.21,20.0]
[1725819758853,25.99770281,129.27,129.22,45.0]
[1725819759029,1.93432,129.26,129.23,20.0]
[1725819759727,27.93202488,129.27,129.23,20.0]
[1725819759927,23.10681437,129.26,129.23,20.0]
[1725819761721,23.10681437,129.26,129.21,20.0]
[1725819761730,23.10681437,129.26,129.22,45.0]
[1725819761827,23.10681437,129.26,129.23,20.0]
[1725819766742,23.10681437,129.26,129.24,45.0]
[1725819768256,21.90517202,129.25,129.24,45.0]
[1725819775270,21.90517202,129.25,129.23,20.0]
[1725819776252,21.90517202,129.25,129.22,20.0]
[1725819776454,21.90517202,129.25,129.23,45.0]
[1725819777847,21.90517202,129.25,129.22,20.0]
[1725819778190,21.90517202,129.25,129.2,9.66723131]
[1725819778335,21.90517202,129.25,129.21,20.0]
[1725819779365,21.90517202,129.25,129.22,45.0]
[1725819779573,21.90517202,129.25,129.23,20.0]
[1725819780484,21.90517202,129.25,129.19,21.55091859]
[1725819780651,21.90517202,129.25,129.2,45.0]
[1725819780854,21.90517202,129.25,129.21,20.0]
[1725819781177,21.90517202,129.25,129.22,45.0]
[1725819781382,21.90517202,129.25,129.23,20.0]
[1725819788278,20.51068223,129.24,129.23,20.0]
[1725819789981,6.3391,129.23,129.18,8.08351737]
[1725819790281,6.3391,129.23,129.06,44.95299803]
[1725819790282,46.36562774,129.23,129.13,9.66723131]
[1725819790602,13.95583619,129.22,129.14,1.55091891]
[1725819790786,21.18278879,129.22,129.15,1.55171977]
[1725819790979,21.18278879,129.22,129.14,9.66723131]
[1725819791282,23.1180033,129.22,129.14,9.66723131]
[1725819791500,21.60872281,129.21,129.15,1.55179687]
[1725819791659,21.60872281,129.21,129.15,1.5518069]
[1725819792182,21.60872281,129.21,129.14,9.66723131]
[1725819792573,21.60872281,129.21,129.15,65.0]
[1725819794405,16.3171,129.2,129.15,45.0]
[1725819794510,16.3171,129.2,129.12,9.66723131]
[1725819794511,19.53765145,129.19,129.12,9.66723131]
[1725819794692,19.53765145,129.19,129.13,20.0]
[1725819794891,19.53765145,129.19,129.11,20.0]
[1725819795091,19.53765145,129.19,129.12,9.66723131]
[1725819795309,19.53765145,129.19,129.13,20.0]
[1725819795781,19.53765145,129.19,129.14,9.66723131]
[1725819796577,19.53765145,129.19,129.15,45.0]
[1725819800286,19.53765145,129.19,129.14,45.0]
[1725819802395,17.37135578,129.19,129.14,45.0]
[1725819802575,17.4734492,129.18,129.14,45.0]
[1725819804799,17.4734492,129.18,129.17,9.66723131]
[1725819805098,21.6242,129.23,129.17,74.66723131]
[1725819805272,21.6242,129.23,129.17,29.66723131]
[1725819805476,17.12005085,129.22,129.17,29.66723131]
[1725819806099,17.12005085,129.22,129.18,65.0]
[1725819807595,17.12005085,129.22,129.18,20.0]
[1725819807776,17.12005085,129.22,129.16,9.66723131]
[1725819807919,17.12005085,129.22,129.17,65.0]
[1725819808301,19.0549902,129.22,129.17,65.0]
[1725819808597,17.25559086,129.21,129.17,65.0]
[1725819809986,17.25559086,129.21,129.17,74.66723131]
[1725819813213,17.25559086,129.21,129.17,65.0]
[1725819817979,16.42073325,129.22,129.17,65.0]
[1725819821812,18.35563324,129.22,129.17,65.0]
[1725819822120,16.66001975,129.21,129.17,65.0]
[1725819825195,16.66001975,129.21,129.13,15.8256]
[1725819825521,16.66001975,129.21,129.16,9.66723131]
[1725819826603,16.66001975,129.21,129.17,45.0]
[1725819827504,16.66001975,129.21,129.18,9.66723131]
[1725819827709,6.3391,129.23,129.19,65.0]
[1725819827894,17.03514341,129.25,129.2,9.66723131]
[1725819828115,17.03514341,129.25,129.22,9.66723131]
[1725819833221,17.03514341,129.25,129.19,65.0]
[1725819833416,17.03514341,129.25,129.2,9.66723131]
[1725819833603,17.03514341,129.25,129.21,20.0]
[1725819835705,17.03514341,129.25,129.22,9.66723131]
[1725819835923,6.4423,129.27,129.22,54.66723131]
[1725819838820,16.3363,129.29,129.22,54.66723131]
[1725819839128,18.0580908,129.28,129.22,54.66723131]
[1725819844510,1.93406919,129.27,129.22,54.66723131]
[1725819844707,1.93406919,129.27,129.22,45.0]
[1725819844708,17.45431834,129.26,129.22,45.0]
[1725819845125,17.45431834,129.26,129.21,20.0]
[1725819845126,19.38864001,129.26,129.21,20.0]
[1725819845319,19.38864001,129.26,129.2,20.0]
[1725819845535,17.45431834,129.26,129.2,20.0]
[1725819847420,1.93449208,129.25,129.2,20.0]
[1725819847615,23.63451834,129.26,129.2,20.0]
[1725819852330,23.63451834,129.26,129.18,15.5952]
[1725819852331,23.63451834,129.26,129.19,29.66723131]
[1725819852841,23.63451834,129.26,129.2,45.0]
[1725819853226,6.1802,129.26,129.2,45.0]
[1725819868058,6.1802,129.26,129.2,46.55122665]
[1725819870270,6.1802,129.26,129.2,45.0]
[1725819870425,6.1802,129.26,129.2,54.66723131]
[1725819873357,6.1802,129.26,129.21,1.55123521]
[1725819873560,6.1802,129.26,129.2,57.14919395]
[1725819873735,6.1802,129.26,129.21,1.55123498]
[1725819873936,6.1802,129.26,129.2,57.14919395]
[1725819874172,6.1802,129.26,129.2,54.66723131]
[1725819874400,6.1802,129.26,129.21,1.55122665]
[1725819874750,6.1802,129.26,129.2,57.14919395]
[1725819874934,6.1802,129.26,129.21,1.55121785]
[1725819875277,6.1802,129.26,129.2,57.14919395]
[1725819875444,6.1802,129.26,129.21,1.55122641]
[1725819875627,6.1802,129.26,129.2,57.14919395]
[1725819875856,6.1802,129.26,129.21,1.55122665]
[1725819876042,6.1802,129.26,129.2,57.14919395]
[1725819876243,6.1802,129.26,129.21,1.55121046]
[1725819876453,6.1802,129.26,129.2,57.14919395]
[1725819876640,6.1802,129.26,129.21,1.55121023]
[1725819876953,6.1802,129.26,129.2,57.14919395]
[1725819877160,6.1802,129.26,129.21,1.55122665]
[1725819877359,6.1802,129.26,129.2,57.14919395]
[1725819877774,6.1802,129.26,129.2,54.66723131]
[1725819878036,6.1802,129.26,129.21,1.55122665]
[1725819878633,6.1802,129.26,129.2,57.14919395]
[1725819878952,6.1802,129.26,129.21,1.55122665]
[1725819879147,6.1802,129.26,129.2,57.14919395]
[1725819879459,6.1802,129.26,129.21,1.55121785]
[1725819879635,6.1802,129.26,129.2,57.14919395]
[1725819879835,6.1802,129.26,129.21,1.55121808]
[1725819880033,6.1802,129.26,129.2,57.14919395]
[1725819880235,6.1802,129.26,129.21,1.55122641]
[1725819880541,6.1802,129.26,129.2,57.14919395]
[1725819880742,6.1802,129.26,129.21,1.55122665]
[1725819880962,6.1802,129.26,129.2,57.14919395]
[1725819881271,6.1802,129.26,129.2,57.14919357]
[1725819881352,6.1802,129.26,129.21,1.55122641]
[1725819881575,6.1802,129.26,129.2,57.14919357]
[1725819881858,6.1802,129.26,129.21,1.55122641]
[1725819882052,6.1802,129.26,129.2,57.14919357]
[1725819882359,6.1802,129.26,129.21,1.5512264]
[1725819882535,6.1802,129.26,129.2,57.14919357]
[1725819882735,6.1802,129.26,129.21,1.55121808]
[1725819882963,6.1802,129.26,129.2,57.14919357]
[1725819883161,6.1802,129.26,129.21,1.55121808]
[1725819883353,6.1802,129.26,129.2,57.14919357]
[1725819883671,6.1802,129.26,129.21,1.55120166]
[1725819883840,6.1802,129.26,129.2,57.14919357]
[1725819884038,6.1802,129.26,129.22,9.66723131]
[1725819884351,18.25710516,129.28,129.24,9.66723131]
[1725819890089,1.9340719,129.27,129.22,2.48149992]
[1725819890267,1.93464588,129.26,129.2,13.70010196]
[1725819890468,18.25710516,129.28,129.21,1.55125204]
[1725819890661,40.29175874,129.26,129.2,12.14873123]
[1725819890859,42.22621523,129.26,129.21,1.55118729]
[1725819891044,22.81570758,129.25,129.2,12.14873123]
[1725819891242,22.81570758,129.25,129.21,46.55123612]
[1725819891594,22.81570758,129.25,129.21,45.0]
[1725819892456,1.9343694,129.24,129.19,2.4819369]
[1725819892650,28.96400758,129.25,129.2,4.03316425]
[1725819892839,22.89571063,129.24,129.21,1.55122735]
[1725819893148,22.89571063,129.24,129.2,2.4819369]
[1725819893343,22.89571063,129.24,129.21,1.55122711]
[1725819893669,22.89571063,129.24,129.2,2.4819369]
[1725819893965,22.89571063,129.24,129.21,1.55122711]
[1725819894158,22.89571063,129.24,129.2,2.4819369]
[1725819894350,22.89571063,129.24,129.21,1.55122711]
[1725819894552,22.89571063,129.24,129.2,2.4819369]
[1725819894835,22.89571063,129.24,129.19,20.0]
[1725819895466,22.89571063,129.24,129.21,1.55122711]
[1725819895648,22.89571063,129.24,129.2,1.55122711]
[1725819895966,22.89571063,129.24,129.19,22.48196338]
[1725819896149,22.89571063,129.24,129.2,1.55137268]
[1725819896348,22.89571063,129.24,129.19,22.48196338]
[1725819896561,22.89571063,129.24,129.2,1.5513644]
[1725819896749,22.89571063,129.24,129.19,22.48196338]
[1725819897062,22.89571063,129.24,129.2,1.55135402]
[1725819897243,22.89571063,129.24,129.19,22.48196338]
[1725819897448,22.89571063,129.24,129.2,1.55136493]
[1725819897654,22.89571063,129.24,129.19,22.48196338]
[1725819897977,22.89571063,129.24,129.2,1.5513647]
[1725819898248,22.89571063,129.24,129.19,20.0]
[1725819898473,22.89571063,129.24,129.19,22.48216981]
[1725819898843,22.89571063,129.24,129.2,1.55135637]
[1725819899047,22.89571063,129.24,129.19,22.48216981]
[1725819899362,24.83036379,129.24,129.2,1.55136493]
[1725819899684,22.04580184,129.23,129.19,22.48216981]
[1725819899859,22.04580184,129.23,129.2,1.55136517]
[1725819900177,22.04580184,129.23,129.19,22.48216981]
[1725819900350,22.04580184,129.23,129.2,1.55136517]
[1725819900554,22.04580184,129.23,129.19,20.0]
[1725819900885,22.04580184,129.23,129.2,1.55136517]
[1725819901078,22.04580184,129.23,129.19,20.0]
[1725819901265,22.04580184,129.23,129.2,1.55137374]
[1725819901462,22.04580184,129.23,129.19,20.0]
[1725819901657,22.04580184,129.23,129.2,1.55137374]
[1725819901861,22.04580184,129.23,129.19,20.0]
[1725819902065,22.04580184,129.23,129.2,1.55136517]
[1725819902256,22.04580184,129.23,129.19,20.0]
[1725819902455,22.04580184,129.23,129.2,1.55136517]
[1725819902763,22.04580184,129.23,129.19,20.0]
[1725819902953,22.04580184,129.23,129.2,1.55136517]
[1725819903166,22.04580184,129.23,129.2,9.66723131]
[1725819906158,21.3675,129.25,129.2,9.66723131]
[1725819918271,1.93464752,129.24,129.2,9.66723131]
[1725819918984,21.3675,129.25,129.2,9.66723131]
[1725819919184,1.93464738,129.24,129.2,9.66723131]
[1725819920876,21.3675,129.25,129.2,9.66723131]
[1725819921388,1.93464706,129.24,129.2,9.66723131]
[1725819923274,1.93464706,129.24,129.19,20.0]
[1725819923589,1.93464706,129.24,129.14,8.07382819]
[1725819923590,22.54,129.22,129.14,8.07382819]
[1725819923777,1.93541488,129.21,129.13,9.66723131]
[1725819924028,1.93557635,129.2,129.13,9.66723131]
[1725819925067,1.93557635,129.2,129.14,65.0]
[1725819925768,24.47552767,129.22,129.14,65.0]
[1725819927704,22.0704121,129.21,129.14,65.0]
[1725819930770,24.00588401,129.21,129.14,65.0]
[1725819930983,24.46417883,129.2,129.14,65.0]
[1725819931292,6.4631,129.18,129.14,20.0]
[1725819931483,6.4631,129.18,129.1,8.54399016]
[1725819931484,20.95137018,129.17,129.11,9.66723131]
[1725819931708,20.95137018,129.17,129.12,20.0]
[1725819937587,22.8872568,129.17,129.12,20.0]
[1725819937899,20.34292275,129.16,129.12,20.0]
[1725819938593,20.34292275,129.16,129.1,20.0]
[1725819938594,1.93588529,129.15,129.1,20.0]
[1725819938897,1.93603648,129.14,129.09,0.8314154]
[1725819939082,1.93603648,129.14,129.09,45.8314154]
[1725819939298,21.9155,129.13,129.09,0.8314154]
[1725819939601,19.40506703,129.12,129.09,0.8314154]
[1725819939806,19.40506703,129.12,129.09,10.49864671]
[1725819940298,19.40506703,129.12,129.09,0.8314154]
[1725819942585,21.34171703,129.12,129.09,0.8314154]
[1725819942790,19.08002117,129.11,129.09,0.8314154]
[1725819951015,16.12962295,129.1,129.09,0.8314154]
[1725819956708,38.29402295,129.1,129.09,0.8314154]
[1725819959122,22.1644,129.1,129.09,0.8314154]
[1725819959694,36.58537536,129.1,129.09,0.8314154]
[1725819959994,38.52239211,129.1,129.09,0.8314154]
[1725819961322,36.58537536,129.1,129.09,0.8314154]
[1725819962215,14.42097536,129.1,129.09,0.8314154]
[1725819962901,1.93674919,129.15,129.09,0.8314154]
[1725819962902,13.69044223,129.15,129.09,0.8314154]
[1725819963096,13.69044223,129.15,129.12,9.66723131]
[1725819969739,13.69044223,129.15,129.11,9.66723131]
[1725819970130,13.69044223,129.15,129.12,20.0]
[1725819970604,13.69044223,129.15,129.13,9.66723131]
[1725819970813,6.3372,129.22,129.14,45.0]
[1725819971006,6.3372,129.22,129.15,9.66723131]
[1725819971007,20.0,129.21,129.15,9.66723131]
[1725819971820,6.3372,129.22,129.15,9.66723131]
[1725819973117,6.3372,129.22,129.17,9.66723131]
[1725819973958,6.3372,129.22,129.14,45.0]
[1725819974105,6.3372,129.22,129.15,29.66723131]
[1725819979308,6.3372,129.22,129.17,9.66723131]
[1725819983435,8.27236887,129.22,129.17,9.66723131]
[1725819984847,6.3372,129.22,129.17,9.66723131]
[1725819985731,8.27236671,129.22,129.17,9.66723131]
[1725819987695,1.9352826,129.21,129.16,9.66723131]
[1725819987842,8.27248389,129.22,129.15,20.0]
[1725819988140,1.93528389,129.2,129.15,20.0]
[1725819988451,1.93528389,129.2,129.15,29.66723131]
[1725819989356,1.93543052,129.21,129.15,29.66723131]
[1725819989647,1.93544685,129.2,129.15,29.66723131]
[1725819990144,1.93544685,129.2,129.15,20.0]
[1725819990355,1.93544685,129.2,129.14,9.66723131]
[1725819991348,1.93554823,129.2,129.13,20.0]
[1725819991518,1.93554823,129.2,129.12,16.3547]
[1725819991519,1.93554823,129.2,129.12,9.66723131]
[1725819991732,21.93554823,129.2,129.12,9.66723131]
[1725819992827,20.0,129.2,129.12,9.66723131]
[1725819993027,20.0,129.2,129.14,9.66723131]
[1725819993339,20.0,129.21,129.14,9.66723131]
[1725819995243,20.0,129.21,129.16,9.66723131]
[1725820001132,6.3372,129.22,129.16,9.66723131]
[1725820007353,1.93516804,129.21,129.16,9.66723131]
[1725820007534,6.3372,129.22,129.16,9.66723131]
[1725820008355,1.9351694,129.21,129.16,9.66723131]
[1725820008854,1.93517156,129.2,129.16,9.66723131]
[1725820009053,6.3372,129.22,129.16,9.66723131]
[1725820011071,6.3372,129.22,129.14,2.48305572]
[1725820011258,6.3372,129.22,129.16,9.66723131]
[1725820012747,1.93529026,129.21,129.16,9.66723131]
[1725820016058,6.3372,129.22,129.16,9.66723131]
[1725820021384,8.27237575,129.22,129.16,9.66723131]
[1725820024664,21.32800766,129.21,129.16,9.66723131]
[1725820029485,1.93517532,129.2,129.14,45.0]
[1725820029664,1.93517532,129.2,129.15,29.66723131]
[1725820031083,21.32800766,129.21,129.15,29.66723131]
[1725820033281,21.32800766,129.21,129.15,20.0]
[1725820033487,23.26331342,129.21,129.16,9.66723131]
[1725820033659,22.18070335,129.2,129.16,9.66723131]
[1725820037184,22.18070335,129.2,129.15,20.0]
[1725820037373,22.18070335,129.2,129.16,9.66723131]
[1725820038765,24.11601356,129.2,129.15,29.66723131]
[1725820039112,21.53545209,129.19,129.15,20.0]
[1725820039260,23.47101825,129.19,129.14,20.0]
[1725820039459,21.59370211,129.18,129.14,20.0]
[1725820042595,21.59370211,129.18,129.15,9.66723131]
[1725820042815,28.73057229,129.22,129.15,9.66723131]
[1725820043006,26.79501516,129.22,129.15,9.66723131]
[1725820043292,21.81254714,129.21,129.15,9.66723131]
[1725820043472,23.74777621,129.21,129.15,9.66723131]
[1725820043672,21.16949619,129.2,129.15,9.66723131]
[1725820045295,21.16949619,129.2,129.14,20.0]
[1725820045499,21.16949619,129.2,129.16,9.66723131]
[1725820050384,21.16949619,129.2,129.14,20.0]
[1725820050591,23.1050293,129.2,129.14,20.0]
[1725820050896,23.5008919,129.19,129.14,20.0]
[1725820053608,1.93557407,129.18,129.14,20.0]
[1725820053811,1.93585163,129.17,129.12,9.66723131]
[1725820053992,23.40884163,129.17,129.13,20.0]
[1725820054897,21.199114,129.16,129.13,20.0]
[1725820055210,21.199114,129.16,129.14,1.55208754]
[1725820055399,21.199114,129.16,129.13,20.0]
[1725820055590,21.199114,129.16,129.14,1.55209223]
[1725820055808,21.199114,129.16,129.13,20.0]
[1725820055981,21.199114,129.16,129.14,1.55209223]
[1725820056337,21.199114,129.16,129.13,20.0]
[1725820057007,21.199114,129.16,129.14,1.55208965]
[1725820057200,21.199114,129.16,129.13,20.0]
[1725820064823,21.199114,129.16,129.09,17.0589154]
[1725820065010,1.93616969,129.15,129.1,1.55234436]
[1725820065222,21.199114,129.16,129.11,1.55234436]
[1725820065223,1.93629965,129.14,129.11,1.55234436]
[1725820065516,1.93629965,129.14,129.1,1.55244088]
[1725820065697,1.93629965,129.14,129.09,10.49864671]
[1725820065902,1.93629965,129.14,129.1,1.55242834]
[1725820066209,1.93629965,129.14,129.1,1.55244429]
[1725820066404,23.1354393,129.16,129.1,1.55244429]
[1725820066804,21.199114,129.16,129.11,9.66723131]
[1725820068922,21.199114,129.16,129.09,12.05117997]
[1725820069116,21.199114,129.16,129.1,20.0]
[1725820071421,21.199114,129.16,129.09,30.49864671]
[1725820076211,15.6046,129.15,129.09,30.49864671]
[1725820076412,21.36202623,129.14,129.09,30.49864671]
[1725820079126,21.36202623,129.14,129.09,20.8314154]
[1725820079328,21.36202623,129.14,129.09,30.49864671]
[1725820080935,21.36202623,129.14,129.09,20.8314154]
[1725820081232,21.36202623,129.14,129.09,30.49864671]
[1725820083204,21.36202623,129.14,129.09,20.8314154]
[1725820083409,21.36202623,129.14,129.1,9.66723131]
[1725820084499,21.26007625,129.14,129.1,9.66723131]
[1725820084700,20.94766658,129.13,129.1,9.66723131]
[1725820085105,20.94766658,129.13,129.09,30.49864671]
[1725820092232,1.93625461,129.12,129.09,0.8314154]
[1725820092441,19.62197529,129.11,129.09,0.8314154]
[1725820100951,1.93671578,129.1,129.09,0.8314154]
[1725820101147,22.1762703,129.1,129.09,0.8314154]
[1725820103049,20.23955452,129.1,129.09,0.8314154]
[1725820105426,22.17638025,129.1,129.09,0.8314154]
[1725820106729,20.23955452,129.1,129.09,0.8314154]
[1725820107627,26.51445452,129.1,129.09,0.8314154]
[1725820108925,73.45147523,129.1,129.09,0.8314154]
[1725820109341,73.35187648,129.1,129.09,0.8314154]
[1725820112429,93.35187648,129.1,129.09,0.8314154]
[1725820112630,6.2749,129.08,128.99,15.889]
[1725820112829,66.29976432,129.07,128.99,25.55623131]
[1725820113040,19.7303072,129.06,128.99,25.55623131]
[1725820114130,19.7303072,129.06,129.0,20.0]
[1725820117240,17.66270482,129.07,129.0,20.0]
[1725820117438,16.98398722,129.06,129.0,20.0]
[1725820121654,15.1682,129.05,128.96,24.56230844]
[1725820121868,17.92539435,129.04,128.96,34.22953975]
[1725820122041,14.87106627,129.03,128.96,16.7204154]
[1725820122247,16.80932027,129.03,128.96,16.7204154]
[1725820122458,14.87106627,129.03,128.96,16.7204154]
[1725820122655,15.43385332,129.02,128.96,16.7204154]
[1725820123342,15.43385332,129.02,128.97,20.0]
[1725820123946,15.43385332,129.02,128.97,29.66723131]
[1725820129135,15.43385332,129.02,128.96,16.7204154]
[1725820129340,1.93802881,129.01,128.96,16.7204154]
[1725820129541,13.68826459,129.0,128.96,16.7204154]
[1725820130354,13.68826459,129.0,128.97,9.66723131]
[1725820131701,13.68826459,129.0,128.99,25.16103131]
[1725820132022,14.24152425,129.07,128.99,25.16103131]
[1725820132149,14.24152425,129.07,129.02,9.66723131]
[1725820132559,14.24152425,129.07,129.0,20.0]
[1725820132945,1.93752395,129.06,129.0,20.0]
[1725820133141,14.01234896,129.05,129.0,29.66723131]
[1725820133944,14.01234896,129.05,128.99,25.16103131]
[1725820134148,14.01234896,129.05,129.0,20.0]
[1725820134778,15.95023756,129.05,128.97,9.66723131]
[1725820135126,14.38024476,129.04,128.98,20.0]
[1725820135755,45.0,129.03,128.96,16.3252154]
[1725820135963,14.67471611,129.02,128.96,16.3252154]
[1725820137079,14.67471611,129.02,128.97,20.0]
[1725820137675,14.67471611,129.02,128.97,29.66723131]
[1725820138942,14.67471611,129.02,128.97,20.0]
[1725820139558,31.26181611,129.02,128.96,0.8314154]
[1725820139750,14.62951734,129.01,128.96,0.8314154]
[1725820139952,16.56798432,129.01,128.96,0.8314154]
[1725820140275,13.53154706,129.0,128.96,0.8314154]
[1725820142265,1.93861593,128.99,128.96,0.8314154]
[1725820142462,12.9440747,128.98,128.96,0.8314154]
[1725820147082,12.9440747,128.98,128.96,10.49864671]
[1725820147555,6.6358,129.01,128.96,10.49864671]
[1725820147826,11.81719872,129.0,128.96,10.49864671]
[1725820151669,11.81719872,129.0,128.96,26.62544671]
[1725820152403,12.666695,129.03,128.96,26.62544671]
[1725820154275,14.60471459,129.03,128.96,26.62544671]
[1725820154592,12.12806774,129.02,128.96,26.62544671]
[1725820160595,12.12806774,129.02,128.96,16.9582154]
[1725820160805,12.12806774,129.02,128.96,26.62544671]
[1725820161118,12.12806774,129.02,128.97,20.0]
[1725820161296,12.12806774,129.02,128.98,9.66723131]
[1725820163975,11.59373968,129.07,129.0,9.66723131]
[1725820164167,20.0,129.06,129.0,9.66723131]
[1725820164371,11.72518465,129.05,129.0,9.66723131]
[1725820166482,11.72518465,129.05,129.02,9.66723131]
[1725820166684,11.72518465,129.05,129.04,9.66723131]
[1725820167003,11.72824674,129.13,129.04,54.66723131]
[1725820167206,11.72824674,129.13,129.07,9.66723131]
[1725820168199,1.93661969,129.12,129.05,54.66723131]
[1725820168382,1.93661969,129.12,129.06,20.0]
[1725820168719,11.72824674,129.13,129.06,20.0]
[1725820171993,11.72824674,129.13,129.03,20.0]
[1725820172197,11.72824674,129.13,129.06,9.66723131]
[1725820174118,1.93669464,129.12,129.04,45.0]
[1725820174288,46.93669464,129.12,129.05,20.0]
[1725820176403,46.93669464,129.12,129.03,29.66723131]
[1725820177599,6.3381,129.11,129.03,20.0]
[1725820177783,45.0,129.1,129.02,29.66723131]
[1725820180806,46.93718743,129.1,129.02,29.66723131]
[1725820182202,15.2604,129.09,129.02,20.0]
[1725820182450,1.93749082,129.08,128.98,23.57799304]
[1725820182602,1.93766687,129.07,128.99,9.66723131]